fUSD/lending_fUSD_20250826
["ID","MTS","AMOUNT","RATE_DAILY","PERIOD"]
[381522527,1756247476956,-400.0,0.00027671,5]
[381522528,1756247476966,-438.7,0.00027671,5]
[381522529,1756247476975,-581.8,0.00027671,5]
[381522530,1756247476984,-739.83,0.00027671,5]
[381522531,1756247476993,-626.47,0.00027671,5]
[381522532,1756247477002,-400.0,0.00027671,5]
[381522533,1756247477013,-863.64,0.00027671,5]
[381522534,1756247477023,-521.98,0.00027671,5]
[381522535,1756247477032,-668.6,0.00027671,5]
[381522536,1756247477041,-400.0,0.00027671,5]
[381522537,1756247477051,-576.45,0.00027671,5]
[381522538,1756247477059,-400.0,0.00027671,5]
[381522539,1756247477069,-788.2,0.00027671,5]
[381522540,1756247477078,-3656.63,0.00027671,5]
[381522541,1756247477087,-562.45,0.00027671,5]
[381522542,1756247477096,-400.0,0.00027671,5]
[381522543,1756247477105,-680.67,0.00027671,5]
[381522544,1756247477114,-864.46,0.00027671,5]
[381522545,1756247477123,-605.45,0.00027671,5]
[381522546,1756247477133,-495.09,0.00027671,5]
[381522547,1756247477143,-809.79,0.00027671,5]
[381522548,1756247477153,-1579.41,0.00027671,5]
[381522549,1756247477162,-688.26,0.00027671,5]
[381522550,1756247477171,-731.76,0.00027671,5]
[381522551,1756247477180,-400.0,0.00027671,5]
[381522552,1756247477189,-424.13,0.00027671,5]
[381522553,1756247477199,-614.46,0.00027671,5]
[381522554,1756247477208,-1106.29,0.00027671,5]
[381522555,1756247477217,-1332.63,0.00027671,5]
[381522556,1756247477228,-893.01,0.00027671,5]
[381522557,1756247477237,-518.54,0.00027671,5]
[381522558,1756247477247,-510.64,0.00027671,5]
[381522559,1756247477256,-788.58,0.00027671,5]
[381522560,1756247477265,-400.0,0.00027671,5]
[381522561,1756247477275,-1097.28,0.00027671,5]
[381522562,1756247477284,-400.0,0.00027671,5]
[381522563,1756247477294,-839.92,0.00027671,5]
[381522564,1756247477303,-400.0,0.00027671,5]
[381522565,1756247477313,-426.78,0.00027671,5]
[381522566,1756247477322,-450.0,0.00027671,5]
[381522567,1756247477331,-860.28,0.00027671,5]
[381522568,1756247477341,-420.85,0.00027671,5]
[381522569,1756247477351,-400.0,0.00027671,5]
[381522570,1756247477361,-400.0,0.00027671,5]
[381522571,1756247477370,-762.7,0.00027671,5]
[381522572,1756247477379,-400.0,0.00027671,5]
[381522573,1756247477389,-1641.19,0.00027671,5]
[381522574,1756247477399,-656.55,0.00027671,5]
[381522575,1756247477408,-429.04,0.00027671,5]
[381522576,1756247477418,-400.0,0.00027671,5]
[381522577,1756247477427,-485.97,0.00027671,5]
[381522578,1756247477437,-978.26,0.00027671,5]
[381522579,1756247477446,-400.0,0.00027671,5]
[381522580,1756247477455,-492.07,0.00027671,5]
[381522581,1756247477464,-822.36,0.00027671,5]
[381522582,1756247477474,-1276.38,0.00027671,5]
[381522583,1756247477484,-1158.05,0.00027671,5]
[381522584,1756247477494,-1725.54,0.00027671,5]
[381522585,1756247477503,-497.75,0.00027671,5]
[381522586,1756247477513,-1033.45,0.00027671,5]
[381522587,1756247477522,-622.78,0.00027671,5]
[381522588,1756247477531,-454.11,0.00027671,5]
[381522589,1756247477540,-636.82,0.00027671,5]
[381522590,1756247477549,-1131.45,0.00027671,5]
[381522591,1756247477559,-427.76,0.00027671,5]
[381522592,1756247477568,-400.0,0.00027671,5]
[381522593,1756247477578,-1164.81,0.00027671,5]
[381522594,1756247477587,-684.67,0.00027671,5]
[381522595,1756247477597,-940.04,0.00027671,5]
[381522596,1756247477606,-720.31,0.00027671,5]
[381522597,1756247477615,-1166.48,0.00027671,5]
[381522598,1756247477625,-438.38,0.00027671,5]
[381522599,1756247477634,-400.0,0.00027671,5]
[381522600,1756247477643,-534.75,0.00027671,5]
[381522601,1756247477655,-400.0,0.00027671,5]
[381522602,1756247477663,-771.72,0.00027671,5]
[381522603,1756247477672,-400.0,0.00027671,5]
[381522604,1756247477681,-400.0,0.00027671,5]
[381522605,1756247477690,-2299.71,0.00027671,5]
[381522606,1756247477700,-751.99,0.00027671,5]
[381522607,1756247477709,-400.0,0.00027671,5]
[381522608,1756247477718,-908.15,0.00027671,5]
[381522609,1756247477727,-400.0,0.00027671,5]
[381522610,1756247477736,-851.95,0.00027671,5]
[381522611,1756247477748,-585.93,0.00027671,5]
[381522612,1756247477758,-694.98,0.00027671,5]
[381522613,1756247477768,-780.56,0.00027671,5]
[381522614,1756247477778,-400.0,0.00027671,5]
[381522615,1756247477788,-400.0,0.00027671,5]
[381522616,1756247477799,-400.0,0.00027671,5]
[381522617,1756247477809,-635.89,0.00027671,5]
[381522618,1756247477820,-400.0,0.00027671,5]
[381522619,1756247477831,-400.0,0.00027671,5]
[381522620,1756247477840,-3069.65,0.00027671,5]
[381522621,1756247477850,-946.54,0.00027671,5]
[381522622,1756247477861,-524.12,0.00027671,5]
[381522623,1756247477871,-400.0,0.00027671,5]
[381522624,1756247477882,-506.1,0.00027671,5]
[381522625,1756247477891,-400.0,0.00027671,5]
[381522626,1756247477900,-400.0,0.00027671,5]
[381522627,1756247477909,-400.0,0.00027671,5]
[381522628,1756247477918,-1293.95,0.00027671,5]
[381522629,1756247477927,-666.86,0.00027671,5]
[381522630,1756247477936,-903.39,0.00027671,5]
[381522631,1756247477945,-400.0,0.00027671,5]
[381522632,1756247477954,-913.22,0.00027671,5]
[381522633,1756247477963,-565.23,0.00027671,5]
[381522634,1756247477973,-400.0,0.00027671,5]
[381522635,1756247477983,-400.0,0.00027671,5]
[381522636,1756247477992,-400.0,0.00027671,5]
[381522637,1756247478002,-790.64,0.00027671,5]
[381522638,1756247478011,-492.19,0.00027671,5]
[381522639,1756247478020,-400.0,0.00027671,5]
[381522640,1756247478029,-400.0,0.00027671,5]
[381522641,1756247478039,-484.25,0.00027671,5]
[381522642,1756247478048,-400.0,0.00027671,5]
[381522643,1756247478057,-400.0,0.00027671,5]
[381522644,1756247478067,-586.42,0.00027671,5]
[381522645,1756247478076,-1007.73,0.00027671,5]
[381522646,1756247478085,-400.59,0.00027671,5]
[381522647,1756247478095,-1218.23,0.00027671,5]
[381522648,1756247478104,-416.99,0.00027671,5]
[381522649,1756247478113,-465.32,0.00027671,5]
[381522650,1756247478123,-400.0,0.00027671,5]
[381522651,1756247478133,-721.88,0.00027671,5]
[381522652,1756247478143,-400.0,0.00027671,5]
[381522653,1756247478153,-500.0,0.00027671,10]
[381522654,1756247478162,-727.5,0.00027671,5]
[381522655,1756247478172,-426.32,0.00027671,5]
[381522656,1756247478181,-1039.96,0.00027671,5]
[381522657,1756247478191,-789.13,0.00027671,5]
[381522658,1756247478330,-400.0,0.00027671,5]
[381522659,1756247478341,-400.0,0.00027671,5]
[381522660,1756247478352,-270.84135087,0.00027671,5]
[381522661,1756247478362,-475.39,0.00027671,5]
[381522662,1756247478371,-774.64,0.00027671,5]
[381522663,1756247478381,-512.32,0.00027671,5]
[381522664,1756247478390,-752.45,0.00027671,5]
[381522665,1756247478400,-768.29,0.00027671,5]
[381522666,1756247478409,-400.0,0.00027671,5]
[381522667,1756247478419,-807.12,0.00027671,5]
[381522668,1756247478428,-478.85,0.00027671,5]
[381522669,1756247478437,-383.8921724,0.00027671,5]
[381522670,1756247478446,-718.67,0.00027671,5]
[381522671,1756247478456,-1035.88,0.00027671,5]
[381522672,1756247478465,-567.65,0.00027671,5]
[381522673,1756247478475,-400.0,0.00027671,5]
[381522674,1756247478484,-400.0,0.00027671,5]
[381522675,1756247478493,-1022.66,0.00027671,5]
[381522676,1756247478503,-848.06,0.00027671,5]
[381522677,1756247478512,-400.0,0.00027671,5]
[381522678,1756247478521,-869.11,0.00027671,5]
[381522679,1756247478531,-796.97,0.00027671,5]
[381522680,1756247478540,-469.96,0.00027671,5]
[381522681,1756247478550,-960.12,0.00027671,5]
[381522682,1756247478559,-797.4,0.00027671,5]
[381522683,1756247478569,-553.05,0.00027671,5]
[381522684,1756247478579,-706.37,0.00027671,5]
[381522685,1756247478588,-823.03,0.00027671,5]
[381522686,1756247478598,-588.46,0.00027671,5]
[381522687,1756247478607,-615.7,0.00027671,5]
[381522688,1756247478617,-400.0,0.00027671,5]
[381522689,1756247478627,-400.0,0.00027671,5]
[381522690,1756247478636,-2892.86,0.00027671,5]
[381522691,1756247478645,-2034.0,0.00027671,5]
[381522692,1756247478655,-400.0,0.00027671,5]
[381522693,1756247478665,-609.86,0.00027671,5]
[381522694,1756247478674,-1157.98,0.00027671,5]
[381522695,1756247478684,-1104.46,0.00027671,5]
[381522696,1756247478694,-752.73,0.00027671,5]
[381522697,1756247478704,-400.0,0.00027671,5]
[381522698,1756247478713,-879.55,0.00027671,5]
[381522699,1756247478723,-435.47,0.00027671,5]
[381522700,1756247478732,-899.52,0.00027671,5]
[381522701,1756247478742,-242.21639009,0.00027671,5]
[381522702,1756247478751,-400.0,0.00027671,5]
[381522703,1756247478761,-1412.37,0.00027671,5]
[381522704,1756247478771,-1235.55,0.00027671,5]
[381522705,1756247478780,-400.0,0.00027671,5]
[381522706,1756247478790,-1021.78,0.00027671,5]
[381522707,1756247478800,-959.78,0.00027671,5]
[381522708,1756247478810,-339.65240791,0.00027671,5]
[381522709,1756247478819,-400.0,0.00027671,5]
[381522710,1756247478829,-386.11811388,0.00027671,5]
[381522711,1756247478839,-458.68,0.00027671,5]
[381522712,1756247478848,-1005.67,0.00027671,5]
[381522713,1756247478858,-400.0,0.00027671,5]
[381522714,1756247478867,-544.07,0.00027671,5]
[381522715,1756247478877,-1060.9,0.00027671,5]
[381522716,1756247478886,-608.01,0.00027671,5]
[381522717,1756247478897,-695.01,0.00027671,5]
[381522718,1756247478907,-400.0,0.00027671,5]
[381522719,1756247478917,-666.15,0.00027671,5]
[381522720,1756247478926,-400.0,0.00027671,5]
[381522721,1756247478936,-1195.79,0.00027671,5]
[381522722,1756247478946,-510.39,0.00027671,5]
[381522723,1756247478956,-1269.56,0.00027671,5]
[381522724,1756247478966,-400.0,0.00027671,5]
[381522725,1756247478976,-557.54,0.00027671,5]
[381522726,1756247478985,-400.0,0.00027671,5]
[381522727,1756247478995,-573.58,0.00027671,5]
[381522728,1756247479004,-400.0,0.00027671,5]
[381522729,1756247479014,-713.72,0.00027671,5]
[381522730,1756247479024,-858.95,0.00027671,5]
[381522731,1756247479033,-400.0,0.00027671,5]
[381522732,1756247479045,-481.63,0.00027671,5]
[381522733,1756247479055,-400.0,0.00027671,5]
[381522734,1756247479065,-317.59001988,0.00027671,5]
[381522735,1756247479075,-618.42,0.00027671,5]
[381522736,1756247479084,-793.2,0.00027671,5]
[381522737,1756247479094,-400.0,0.00027671,5]
[381522738,1756247479103,-547.25,0.00027671,5]
[381522739,1756247479113,-521.68,0.00027671,5]
[381522740,1756247479123,-992.31,0.00027671,5]
[381522741,1756247479132,-400.0,0.00027671,5]
[381522742,1756247479142,-262.96006737,0.00027671,5]
[381522743,1756247479153,-1103.82,0.00027671,5]
[381522744,1756247479162,-853.74,0.00027671,5]
[381522745,1756247479172,-449.02,0.00027671,5]
[381522746,1756247479183,-400.0,0.00027671,5]
[381522747,1756247479192,-651.12,0.00027671,5]
[381522748,1756247479202,-1769.89,0.00027671,5]
[381522749,1756247479212,-692.65,0.00027671,5]
[381522750,1756247479222,-400.0,0.00027671,5]
[381522751,1756247479232,-579.08,0.00027671,5]
[381522752,1756247479242,-664.51,0.00027671,5]
[381522753,1756247479252,-400.0,0.00027671,5]
[381522754,1756247479262,-2146.82,0.00027671,5]
[381522755,1756247479272,-769.1,0.00027671,5]
[381522756,1756247479282,-586.13,0.00027671,5]
[381522757,1756247479291,-497.78,0.00027671,5]
[381522758,1756247479301,-916.33,0.00027671,5]
[381522759,1756247479311,-400.0,0.00027671,5]
[381522760,1756247479321,-400.0,0.00027671,5]
[381522761,1756247479331,-400.0,0.00027671,5]
[381522762,1756247479343,-400.0,0.00027671,5]
[381522763,1756247479354,-1159.11,0.00027671,5]
[381522764,1756247479364,-637.18,0.00027671,5]
[381522765,1756247479374,-638.03,0.00027671,5]
[381522766,1756247479383,-400.0,0.00027671,5]
[381522767,1756247479392,-400.0,0.00027671,5]
[381522768,1756247479403,-400.0,0.00027671,5]
[381522769,1756247479414,-1068.96,0.00027671,5]
[381522770,1756247479425,-640.97,0.00027671,5]
[381522771,1756247479435,-943.38,0.00027671,5]
[381522772,1756247479444,-1011.69,0.00027671,5]
[381522773,1756247479454,-534.56,0.00027671,5]
[381522774,1756247479463,-424.62,0.00027671,5]
[381522775,1756247479473,-400.0,0.00027671,5]
[381522776,1756247479483,-617.41,0.00027671,5]
[381522777,1756247479493,-1097.58,0.00027671,5]
[381522778,1756247479502,-400.0,0.00027671,5]
[381522779,1756247479512,-813.06,0.00027671,5]
[381522780,1756247479522,-1716.37,0.00027671,5]
[381522781,1756247479531,-400.0,0.00027671,5]
[381522782,1756247479541,-400.0,0.00027671,5]
[381522783,1756247479551,-400.0,0.00027671,5]
[381522784,1756247479560,-851.28,0.00027671,5]
[381522785,1756247479570,-538.89,0.00027671,5]
[381522786,1756247479579,-684.82,0.00027671,5]
[381522787,1756247479588,-470.22,0.00027671,5]
[381522788,1756247479598,-400.0,0.00027671,5]
[381522789,1756247479607,-1636.08,0.00027671,5]
[381522790,1756247479617,-530.73,0.00027671,5]
[381522791,1756247479626,-400.0,0.00027671,5]
[381522792,1756247479635,-400.0,0.00027671,5]
[381522793,1756247479645,-552.96,0.00027671,5]
[381522794,1756247479655,-673.0,0.00027671,5]
[381522795,1756247479664,-1147.22,0.00027671,5]
[381522796,1756247479674,-400.0,0.00027671,5]
[381522797,1756247479683,-739.4,0.00027671,5]
[381522798,1756247479692,-645.97,0.00027671,5]
[381522799,1756247479702,-474.46,0.00027671,5]
[381522800,1756247479712,-507.44,0.00027671,5]
[381522801,1756247479721,-400.0,0.00027671,5]
[381522802,1756247479731,-400.0,0.00027671,5]
[381522803,1756247479740,-400.0,0.00027671,5]
[381522804,1756247479750,-480.17,0.00027671,5]
[381522805,1756247479759,-1109.96,0.00027671,5]
[381522806,1756247479769,-596.18,0.00027671,5]
[381522807,1756247479778,-1073.9,0.00027671,5]
[381522808,1756247479787,-445.47,0.00027671,5]
[381522809,1756247479796,-400.0,0.00027671,5]
[381522810,1756247479806,-400.0,0.00027671,5]
[381522811,1756247479815,-566.92,0.00027671,5]
[381522812,1756247479824,-1153.43,0.00027671,5]
[381522813,1756247479834,-996.26,0.00027671,5]
[381522814,1756247479843,-400.0,0.00027671,5]
[381522815,1756247479852,-400.0,0.00027671,5]
[381522816,1756247479861,-607.22,0.00027671,5]
[381522817,1756247479871,-492.58,0.00027671,5]
[381522818,1756247479880,-400.0,0.00027671,5]
[381522819,1756247479889,-1378.7,0.00027671,5]
[381522820,1756247479900,-571.32,0.00027671,5]
[381522821,1756247479909,-400.0,0.00027671,5]
[381522822,1756247479919,-686.27,0.00027671,5]
[381522823,1756247479928,-609.43,0.00027671,5]
[381522824,1756247479937,-400.0,0.00027671,5]
[381522825,1756247479947,-998.77,0.00027671,5]
[381522826,1756247479956,-706.8,0.00027671,5]
[381522827,1756247479966,-400.0,0.00027671,5]
[381522828,1756247479976,-826.34,0.00027671,5]
[381522829,1756247479985,-1125.2,0.00027671,5]
[381522830,1756247479994,-597.87,0.00027671,5]
[381522831,1756247480003,-712.05,0.00027671,5]
[381522832,1756247480012,-400.0,0.00027671,5]
[381522833,1756247480022,-400.0,0.00027671,5]
[381522834,1756247480031,-400.0,0.00027671,5]
[381522835,1756247480040,-688.88,0.00027671,5]
[381522836,1756247480049,-663.81,0.00027671,5]
[381522837,1756247480059,-9247.06,0.00027671,5]
[381522838,1756247480068,-180.0,0.00027671,5]
[381522839,1756247480078,-884.44,0.00027671,5]
[381522840,1756247480087,-964.74,0.00027671,5]
[381522841,1756247480097,-1133.05,0.00027671,5]
[381522842,1756247480106,-400.0,0.00027671,5]
[381522843,1756247480115,-675.94,0.00027671,5]
[381522844,1756247480124,-421.11,0.00027671,5]
[381522845,1756247480134,-779.88,0.00027671,5]
[381522846,1756247480143,-449.9,0.00027671,5]
[381522847,1756247480154,-748.23,0.00027671,5]
[381522848,1756247480164,-829.97,0.00027671,5]
[381522849,1756247480173,-1806.18,0.00027671,5]
[381522850,1756247480182,-570.04,0.00027671,5]
[381522851,1756247480191,-601.05,0.00027671,5]
[381522852,1756247480201,-824.99,0.00027671,5]
[381522853,1756247480210,-1159.35,0.00027671,5]
[381522854,1756247480219,-1805.54,0.00027671,5]
[381522855,1756247480228,-479.12,0.00027671,5]
[381522856,1756247480239,-1041.12,0.00027671,5]
[381522857,1756247480249,-447.93,0.00027671,5]
[381522858,1756247480259,-400.0,0.00027671,5]
[381522859,1756247480269,-872.42,0.00027671,5]
[381522860,1756247480279,-873.69,0.00027671,5]
[381522861,1756247480288,-979.0,0.00027671,5]
[381522862,1756247480298,-400.0,0.00027671,5]
[381522863,1756247480309,-813.86,0.00027671,5]
[381522864,1756247480319,-1173.22,0.00027671,5]
[381522865,1756247480329,-764.0,0.00027671,5]
[381522866,1756247480341,-501.13861113,0.00027671,5]
[381522867,1756247480352,-1495.4,0.00027671,5]
[381522868,1756247480362,-400.0,0.00027671,5]
[381522869,1756247480371,-527.14,0.00027671,5]
[381522870,1756247480380,-400.0,0.00027671,5]
[381522871,1756247480391,-1054.95,0.00027671,5]
[381522872,1756247480400,-595.82,0.00027671,5]
[381522873,1756247480409,-400.0,0.00027671,5]
[381522874,1756247480419,-1342.77,0.00027671,5]
[381522875,1756247480430,-767.16,0.00027671,5]
[381522876,1756247480827,-400.0,0.00027671,5]
[381522877,1756247480839,-400.0,0.00027671,5]
[381522878,1756247480849,-519.5,0.00027671,5]
[381522879,1756247480859,-1212.36,0.00027671,5]
[381522880,1756247480868,-400.0,0.00027671,5]
[381522881,1756247480878,-400.0,0.00027671,5]
[381522882,1756247480889,-400.0,0.00027671,5]
[381522883,1756247480900,-925.95,0.00027671,5]
[381522884,1756247480911,-931.19,0.00027671,5]
[381522885,1756247480921,-967.28,0.00027671,5]
[381522886,1756247480931,-5287.2,0.00027671,5]
[381522887,1756247480941,-250.0,0.00027672,2]
[381522888,1756247480950,-500.0,0.00027672,2]
[381522889,1756247480960,-617.0,0.00027672,2]
[381522890,1756247480969,-468.55754463,0.00027672,2]
[381522891,1756247480979,-500.0,0.00027672,2]
[381522892,1756247480988,-500.0,0.00027673,5]
[381522893,1756247480998,-1379.0,0.00027673,2]
[381522894,1756247481007,-14162.07323583,0.00027687,8]
[381522895,1756247481017,-205.0,0.000277,30]
[381522896,1756247481026,-1000.0,0.000277,2]
[381522897,1756247481036,-150.0,0.00027708,2]
[381522898,1756247481046,-1379.0,0.00027712,2]
[381522899,1756247481056,-213.0,0.0002772,2]
[381522900,1756247481065,-310.0,0.0002772,2]
[381522901,1756247481075,-4154.54,0.000278,7]
[381522902,1756247481084,-938.6,0.00027807,2]
[381522903,1756247481094,-469.3,0.00027807,2]
[381522904,1756247481103,-469.3,0.00027807,2]
[381522905,1756247481113,-469.3,0.00027807,2]
[381522906,1756247481122,-5632.28126561,0.00027845,2]
[381522907,1756247481132,-156.4965233,0.00027848,4]
[381522908,1756247481142,-3298.1660689,0.00027881,2]
[381522909,1756247481152,-1220.1907748,0.00027881,2]
[381522910,1756247481162,-3000.0,0.0002789,5]
[381522911,1756247481171,-208767.89767401,0.000279,3]
[381522912,1756247481182,-160.0,0.000279,3]
[381522913,1756247481192,-287.61899177,0.00027902,2]
[381522914,1756247481201,-161.45,0.00027909,7]
[381522915,1756247481211,-1000.0,0.00027921,5]
[381522916,1756247481221,-284.05329204,0.00027921,5]
[381522917,1756247481230,-1000.0,0.00027921,5]
[381522918,1756247481240,-1000.0,0.00027921,5]
[381522919,1756247481249,-1000.0,0.00027921,5]
[381522920,1756247481258,-10862.09914867,0.00027945,2]
[381522921,1756247481268,-572.483403,0.00027945,5]
[381522922,1756247481278,-661.378938,0.00027945,5]
[381522923,1756247481288,-908.473124,0.00027945,5]
[381522924,1756247481297,-400.0,0.00027945,5]
[381522925,1756247481307,-400.0,0.00027945,5]
[381522926,1756247481316,-400.0,0.00027945,5]
[381522927,1756247481326,-400.0,0.00027945,5]
[381522928,1756247481335,-400.0,0.00027945,5]
[381522929,1756247481348,-400.0,0.00027945,5]
[381522930,1756247481357,-400.0,0.00027945,5]
[381522931,1756247481366,-550.03,0.00027945,5]
[381522932,1756247481375,-400.0,0.00027945,5]
[381522933,1756247481385,-1205.05,0.00027945,5]
[381522934,1756247481396,-435.8,0.00027945,5]
[381522935,1756247481406,-400.0,0.00027945,5]
[381522936,1756247481416,-428.27946764,0.00027945,5]
[381522937,1756247481426,-557.54,0.00027945,5]
[381522938,1756247481435,-443.69,0.00027945,5]
[381522939,1756247481445,-400.0,0.00027945,5]
[381522940,1756247481454,-534.98,0.00027945,5]
[381522941,1756247481464,-400.0,0.00027945,5]
[381522942,1756247481474,-307.81439846,0.00027945,5]
[381522943,1756247481483,-566.56,0.00027945,5]
[381522944,1756247481493,-400.0,0.00027945,5]
[381522945,1756247481502,-400.0,0.00027945,5]
[381522946,1756247481512,-400.0,0.00027945,5]
[381522947,1756247481522,-805.51,0.00027945,5]
[381522948,1756247481531,-400.0,0.00027945,5]
[381522949,1756247481542,-250.59960708,0.00027945,5]
[381522950,1756247481553,-400.0,0.00027945,5]
[381522951,1756247481562,-156.67322062,0.00027945,5]
[381522952,1756247482414,-598.57677938,0.00027945,5]
[381522953,1756247482425,-759.1,0.00027945,5]
[381522954,1756247482435,-401.16947058,0.00027945,5]
[381522955,1756247482444,-776.21,0.00027945,5]
[381522956,1756247482454,-602.6,0.00027945,5]
[381522957,1756247482463,-400.0,0.00027945,5]
[381522958,1756247482473,-400.0,0.00027945,5]
[381522959,1756247482483,-400.0,0.00027945,5]
[381522960,1756247482494,-400.0,0.00027945,5]
[381522961,1756247482504,-400.0,0.00027945,5]
[381522962,1756247482515,-400.0,0.00027945,5]
[381522963,1756247482524,-456.54,0.00027945,5]
[381522964,1756247482533,-400.0,0.00027945,5]
[381522965,1756247482543,-595.56,0.00027945,5]
[381522966,1756247482552,-400.0,0.00027945,5]
[381522967,1756247482562,-400.0,0.00027945,5]
[381522968,1756247482572,-400.0,0.00027945,5]
[381522969,1756247482581,-400.0,0.00027945,5]
[381522970,1756247482591,-404.42,0.00027945,5]
[381522971,1756247482601,-400.0,0.00027945,5]
[381522972,1756247482611,-266.18718193,0.00027945,5]
[381522973,1756247482620,-400.0,0.00027945,5]
[381522974,1756247482631,-459.16,0.00027945,5]
[381522975,1756247482642,-702.36,0.00027945,5]
[381522976,1756247482653,-762.03,0.00027945,5]
[381522977,1756247482662,-938.12,0.00027945,5]
[381522978,1756247482672,-463.37,0.00027945,5]
[381522979,1756247482681,-810.89,0.00027945,5]
[381522980,1756247482691,-400.0,0.00027945,5]
[381522981,1756247482700,-555.33,0.00027945,5]
[381522982,1756247482710,-400.0,0.00027945,5]
[381522983,1756247482719,-400.0,0.00027945,5]
[381522984,1756247482728,-176.68242993,0.00027945,5]
[381522985,1756247482738,-400.0,0.00027945,5]
[381522986,1756247482747,-474.27,0.00027945,5]
[381522987,1756247482756,-758.22,0.00027945,5]
[381522988,1756247482766,-510.99,0.00027945,5]
[381522989,1756247482775,-650.18,0.00027945,5]
[381522990,1756247482785,-691.15,0.00027945,5]
[381522991,1756247482794,-446.42,0.00027945,5]
[381522992,1756247482803,-400.0,0.00027945,5]
[381522993,1756247482812,-641.79,0.00027945,5]
[381522994,1756247482822,-571.55,0.00027945,5]
[381522995,1756247482831,-1073.7,0.00027945,5]
[381522996,1756247482840,-425.09497888,0.00027945,5]
[381522997,1756247482850,-467.43,0.00027945,5]
[381522998,1756247482859,-489.86,0.00027945,5]
[381522999,1756247482868,-400.0,0.00027945,5]
[381523000,1756247482877,-400.0,0.00027945,5]
[381523001,1756247482887,-806.06,0.00027945,5]
[381523002,1756247482896,-432.78,0.00027945,5]
[381523003,1756247482908,-354.07683942,0.00027945,5]
[381523004,1756247482917,-516.8,0.00027945,5]
[381523005,1756247482931,-400.0,0.00027945,5]
[381523006,1756247482949,-400.0,0.00027945,5]
[381523007,1756247482965,-400.0,0.00027945,5]
[381523008,1756247482977,-550.58,0.00027945,5]
[381523009,1756247482993,-596.68,0.00027945,5]
[381523010,1756247483007,-400.0,0.00027945,5]
[381523011,1756247483022,-414.19,0.00027945,5]
[381523012,1756247483037,-400.0,0.00027945,5]
[381523013,1756247483051,-400.0,0.00027945,5]
[381523014,1756247483071,-400.0,0.00027945,5]
[381523015,1756247483086,-400.0,0.00027945,5]
[381523016,1756247483101,-507.55,0.00027945,5]
[381523017,1756247483116,-400.0,0.00027945,5]
[381523018,1756247483130,-758.4,0.00027945,5]
[381523019,1756247483145,-400.0,0.00027945,5]
[381523020,1756247483160,-640.48,0.00027945,5]
[381523021,1756247483174,-691.61,0.00027945,5]
[381523022,1756247483187,-400.0,0.00027945,5]
[381523023,1756247483201,-408.49,0.00027945,5]
[381523024,1756247483217,-664.99,0.00027945,5]
[381523025,1756247483236,-585.0,0.00027945,5]
[381523026,1756247483247,-400.0,0.00027945,5]